bitfinex-derivatives/quotes_BTCF0:USTF0_20250620
["timestamp","ask_amount","ask_price","bid_price","bid_amount"]
[1750456154958,1.24829685,103690.0,103680.0,0.2542832]
[1750456155153,0.70816253,103690.0,103680.0,0.2542832]
[1750456155356,0.34736253,103690.0,103680.0,0.6150832]
[1750456155954,0.34836253,103690.0,103680.0,0.6150832]
[1750456156157,0.34936253,103690.0,103680.0,0.6150832]
[1750456156562,0.06004903,103690.0,103680.0,0.6150832]
[1750456156752,0.05964903,103690.0,103680.0,0.6150832]
[1750456156948,0.06004903,103690.0,103680.0,0.6150832]
[1750456158066,0.75495945,103690.0,103680.0,0.6150832]
[1750456159164,0.35861918,103690.0,103680.0,0.6150832]
[1750456159464,0.25291373,103690.0,103680.0,0.6150832]
[1750456160160,1.62976523,103700.0,103680.0,0.7115196]
[1750456160460,1.33065655,103700.0,103690.0,0.2869647]
[1750456160961,0.89276719,103700.0,103690.0,0.6477647]
[1750456162065,0.89376719,103700.0,103690.0,0.6477647]
[1750456164855,0.89376719,103700.0,103690.0,0.2869647]
[1750456165155,0.89376719,103700.0,103690.0,0.6477647]
[1750456165353,0.84555159,103700.0,103690.0,0.6477647]
[1750456165659,0.84475159,103700.0,103690.0,0.6477647]
[1750456166062,0.84515159,103700.0,103690.0,0.6477647]
[1750456167765,0.44881132,103700.0,103690.0,0.6477647]
[1750456167967,0.84515159,103700.0,103690.0,0.6477647]
[1750456168158,0.90286986,103700.0,103690.0,0.6477647]
[1750456171570,0.90186986,103700.0,103690.0,0.6477647]
[1750456171770,0.90286986,103700.0,103690.0,0.6477647]
[1750456174868,0.79294464,103700.0,103690.0,0.6477647]
[1750456178877,0.39660437,103700.0,103690.0,0.6477647]
[1750456179172,0.93488004,103700.0,103690.0,0.6165647]
[1750456180076,0.90358004,103700.0,103690.0,0.6165647]
[1750456182269,0.84586177,103700.0,103690.0,0.6165647]
[1750456182871,0.84586177,103700.0,103690.0,0.3934]
[1750456183077,0.1928647,103690.0,103680.0,0.6171733]
[1750456183274,0.1928833,103680.0,103670.0,0.52423372]
[1750456183575,0.64703898,103680.0,103670.0,0.25735025]
[1750456183769,0.70973898,103680.0,103670.0,0.25775025]
[1750456184077,0.70973898,103680.0,103670.0,0.25735025]
[1750456184377,0.65192357,103680.0,103670.0,0.25775025]
[1750456185071,0.65192357,103680.0,103670.0,0.26175025]
[1750456185473,0.76332623,103680.0,103670.0,0.25775025]
[1750456185671,0.76332623,103680.0,103670.0,0.22955025]
[1750456186279,0.76332623,103680.0,103670.0,0.23255025]
[1750456186674,0.76332623,103680.0,103670.0,0.19925025]
[1750456187175,0.76332623,103680.0,103670.0,0.19725025]
[1750456187675,1.1596665,103680.0,103670.0,0.19725025]
[1750456187880,0.76332623,103680.0,103670.0,0.19725025]
[1750456190385,0.76332623,103680.0,103670.0,0.22815025]
[1750456191083,0.36698596,103680.0,103670.0,0.22815025]
[1750456191282,0.78999036,103680.0,103670.0,0.26055025]
[1750456195383,0.39365009,103680.0,103670.0,0.26055025]
[1750456195585,0.75839036,103680.0,103670.0,0.26055025]
[1750456197084,0.75839036,103680.0,103670.0,0.29195025]
[1750456199490,0.73492311,103680.0,103670.0,0.29195025]
[1750456205196,0.67715898,103680.0,103670.0,0.29195025]
[1750456206400,0.28081871,103680.0,103670.0,0.29195025]
[1750456206605,0.73491968,103680.0,103670.0,0.29195025]
[1750456207092,0.73491968,103680.0,103670.0,0.65275025]
[1750456207803,0.73491968,103680.0,103670.0,0.29195025]
[1750456208204,0.67715898,103680.0,103670.0,0.29195025]
[1750456208794,1.07457469,103680.0,103670.0,0.29195025]
[1750456209205,1.07457469,103680.0,103670.0,0.30973462]
[1750456213111,1.07457469,103680.0,103670.0,0.67053462]
[1750456213409,1.15166405,103680.0,103670.0,0.67053462]
[1750456214310,1.15166405,103680.0,103670.0,0.30973462]
[1750456214517,1.15166405,103680.0,103670.0,0.67053462]
[1750456215506,1.15166405,103680.0,103670.0,0.30973462]
[1750456215707,1.07457469,103680.0,103670.0,0.67053462]
[1750456218507,0.91398757,103680.0,103670.0,0.67053462]
[1750456218706,1.01959864,103680.0,103670.0,0.67053462]
[1750456219207,1.01959864,103680.0,103670.0,0.30973462]
[1750456221320,0.22584266,103680.0,103670.0,0.30973462]
[1750456221517,1.01959864,103680.0,103670.0,0.27833462]
[1750456221718,1.05129864,103680.0,103670.0,0.27833462]
[1750456224011,1.41209864,103680.0,103670.0,0.27833462]
[1750456225018,1.05129864,103680.0,103670.0,0.27833462]
[1750456225318,1.41209864,103680.0,103670.0,0.02174892]
[1750456225514,1.44289864,103680.0,103670.0,0.02214892]
[1750456225707,1.44289864,103680.0,103670.0,0.00396455]
[1750456225912,1.44289864,103680.0,103670.0,0.00436455]
[1750456226816,1.519988,103680.0,103670.0,0.00436455]
[1750456228620,1.35317657,103680.0,103670.0,0.00436455]
[1750456228822,1.54605987,103680.0,103670.0,0.00436455]
[1750456230114,1.48355987,103680.0,103670.0,0.19726645]
[1750456230315,1.72471987,103680.0,103670.0,0.29236645]
[1750456230714,1.72431987,103680.0,103670.0,0.29236645]
[1750456230920,1.72471987,103680.0,103670.0,0.29236645]
[1750456236422,0.93096389,103680.0,103670.0,0.29236645]
[1750456236624,1.64763051,103680.0,103670.0,0.29236645]
[1750456236829,1.64763051,103680.0,103670.0,0.25956645]
[1750456237731,2.00843051,103680.0,103670.0,0.25956645]
[1750456238030,1.04607051,103680.0,103670.0,0.25956645]
[1750456238223,1.64747051,103680.0,103670.0,0.25956645]
[1750456239133,1.64811051,103680.0,103670.0,0.25956645]
[1750456240235,1.04607051,103680.0,103670.0,0.25956645]
[1750456240438,1.64775051,103680.0,103670.0,0.25956645]
[1750456240733,1.04607051,103680.0,103670.0,0.25956645]
[1750456240928,2.00851051,103680.0,103670.0,0.06666455]
[1750456241334,2.08559987,103680.0,103670.0,0.06666455]
[1750456241633,2.08559987,103680.0,103670.0,0.25956645]
[1750456242233,1.72479987,103680.0,103670.0,0.25956645]
[1750456242825,0.93104389,103680.0,103670.0,0.25956645]
[1750456243130,1.72479987,103680.0,103670.0,0.25956645]
[1750456243633,2.08559987,103680.0,103670.0,0.25956645]
[1750456245636,2.00851051,103680.0,103670.0,0.06666455]
[1750456245936,2.08559987,103680.0,103670.0,0.06666455]
[1750456248133,2.08571987,103680.0,103670.0,0.06666455]
[1750456248729,2.08559987,103680.0,103670.0,0.06666455]
[1750456249337,2.08559987,103680.0,103670.0,0.06626455]
[1750456249636,2.08559987,103680.0,103670.0,0.06666455]
[1750456250237,2.08559987,103680.0,103670.0,0.00436455]
[1750456250426,2.15009987,103680.0,103670.0,0.00436455]
[1750456256940,2.15009987,103680.0,103670.0,0.06836455]
[1750456257141,2.15009987,103680.0,103670.0,0.05895347]
[1750456259533,2.15009987,103680.0,103660.0,0.2270205]
[1750456259534,0.1929018,103670.0,103660.0,0.2270205]
[1750456259736,0.1929018,103670.0,103660.0,0.0008]
[1750456259737,1.08365778,103670.0,103660.0,0.0008]
[1750456259939,1.26705583,103670.0,103660.0,0.0008]
[1750456260338,0.1929205,103660.0,103650.0,0.9072476]
[1750456260543,1.04456154,103660.0,103650.0,0.9080476]
[1750456261239,1.07357579,103660.0,103650.0,0.9080476]
[1750456261850,1.07357579,103660.0,103650.0,0.9100476]
[1750456263042,1.07357579,103660.0,103650.0,0.9120476]
[1750456263246,1.07357579,103660.0,103650.0,0.8638136]
[1750456264840,1.07357579,103660.0,103650.0,0.8155799]
[1750456267342,1.07357579,103660.0,103650.0,0.7673462]
[1750456268445,1.07357579,103660.0,103650.0,0.4065462]
[1750456271554,1.07357579,103660.0,103650.0,0.262839]
[1750456271853,1.07357579,103660.0,103650.0,0.262039]
[1750456272053,1.07357579,103660.0,103650.0,0.262439]
[1750456272254,1.07357579,103660.0,103650.0,0.0695]
[1750456272455,1.01569073,103660.0,103650.0,0.0695]
[1750456274250,2.0840943,103660.0,103650.0,0.0044]
[1750456274455,2.1153943,103660.0,103650.0,0.0044]
[1750456274756,2.0840943,103660.0,103650.0,0.0666]
[1750456275445,2.0840943,103660.0,103650.0,0.067]
[1750456277256,2.0840943,103660.0,103650.0,0.0666]
[1750456277455,2.0840943,103660.0,103650.0,0.067]
[1750456278658,2.16118366,103660.0,103650.0,0.067]
[1750456278855,2.22318366,103660.0,103650.0,0.067]
[1750456279161,2.62006165,103660.0,103650.0,0.067]
[1750456280156,2.62006165,103660.0,103650.0,0.0044]
[1750456280349,2.76416459,103660.0,103650.0,0.0044]
[1750456280552,0.1929577,103640.0,103630.0,0.0016]
[1750456280756,0.1929763,103630.0,103620.0,0.3350348]
[1750456280949,1.34753228,103630.0,103620.0,0.3350348]
[1750456281155,1.45738298,103630.0,103620.0,0.3350348]
[1750456281350,0.72141106,103630.0,103620.0,0.3350348]
[1750456281551,1.51516704,103630.0,103620.0,0.3350348]
[1750456281753,1.51516704,103630.0,103620.0,0.0938]
[1750456282245,1.51516704,103630.0,103620.0,0.0632]
[1750456282450,1.51516704,103630.0,103620.0,0.0636]
[1750456282653,1.54816704,103630.0,103620.0,0.0632]
[1750456282853,1.54816704,103630.0,103620.0,0.0636]
[1750456283259,1.62509167,103630.0,103620.0,0.0636]
[1750456283461,1.62609167,103630.0,103620.0,0.0636]
[1750456284455,1.59960761,103630.0,103620.0,0.0004]
[1750456284655,1.92190325,103630.0,103620.0,0.0004]
[1750456284856,0.1929949,103620.0,103610.0,0.06486511]
[1750456285057,2.03799458,103620.0,103610.0,0.06566511]
[1750456285353,2.54587683,103620.0,103610.0,0.00176511]
[1750456285551,2.57907683,103620.0,103610.0,0.00176511]
[1750456285755,2.57907683,103620.0,103610.0,0.00096511]
[1750456285951,2.57907683,103620.0,103610.0,0.00196511]
[1750456286166,2.57907683,103620.0,103610.0,0.00296511]
[1750456286558,2.57907683,103620.0,103610.0,0.00336511]
[1750456286757,2.57907683,103620.0,103610.0,0.00296511]
[1750456286956,2.57907683,103620.0,103610.0,0.00336511]
[1750456287156,2.57907683,103620.0,103610.0,0.00296511]
[1750456287356,2.57907683,103620.0,103610.0,0.00336511]
[1750456288955,2.57907683,103620.0,103610.0,0.00236511]
[1750456289368,2.57907683,103620.0,103610.0,0.00136511]
[1750456289664,2.58007683,103620.0,103610.0,0.00136511]
[1750456291265,2.58007683,103620.0,103610.0,0.00096511]
[1750456291461,2.58007683,103620.0,103610.0,0.00136511]
[1750456292962,2.58007683,103620.0,103590.0,0.39133489]
[1750456292963,0.1930321,103600.0,103590.0,0.39133489]
[1750456293158,1.98526607,103600.0,103590.0,0.39133489]
[1750456293370,2.27328355,103600.0,103590.0,0.42393489]
[1750456293562,2.69164414,103600.0,103590.0,0.06353489]
[1750456294167,2.69264414,103600.0,103590.0,0.06353489]
[1750456294371,0.1930508,103590.0,103580.0,0.22473409]
[1750456294566,1.04880678,103590.0,103580.0,0.03166539]
[1750456294766,1.15081479,103590.0,103580.0,0.22473479]
[1750456295272,1.15081479,103590.0,103580.0,0.03166539]
[1750456295574,1.15081479,103590.0,103580.0,0.03366539]
[1750456295777,1.15081479,103590.0,103580.0,0.05085262]
[1750456295974,1.11971479,103590.0,103580.0,0.22673479]
[1750456296272,1.11971479,103590.0,103580.0,0.06496539]
[1750456296770,0.72358632,103590.0,103580.0,0.06796539]
[1750456296967,1.12121383,103590.0,103580.0,0.06796539]
[1750456297675,1.48201383,103590.0,103580.0,0.06796539]
[1750456298371,1.51471383,103590.0,103580.0,0.06796539]
[1750456299064,1.51471383,103590.0,103580.0,0.06836539]
[1750456299269,1.54370891,103590.0,103580.0,0.06836539]
[1750456300665,1.68718891,103590.0,103580.0,0.06836539]
[1750456300869,1.68718891,103590.0,103580.0,0.00636539]
[1750456301068,1.71998891,103590.0,103580.0,0.00636539]
[1750456301470,1.71998891,103590.0,103580.0,0.03946539]
[1750456301671,1.71998891,103590.0,103580.0,0.06986539]
[1750456303179,1.71998891,103590.0,103580.0,0.06946539]
[1750456303375,1.7775495,103590.0,103580.0,0.06946539]
[1750456303579,1.7775495,103590.0,103580.0,0.00636539]
[1750456303873,1.7775495,103590.0,103580.0,0.00596539]
[1750456304268,1.7775495,103590.0,103580.0,0.03896539]
[1750456304471,1.7447495,103590.0,103580.0,0.03936539]
[1750456304671,1.7447495,103590.0,103580.0,0.07116539]
[1750456304872,1.7447495,103590.0,103580.0,0.06916539]
[1750456305481,1.7447495,103590.0,103580.0,0.06616539]
[1750456305874,1.7758495,103590.0,103580.0,0.06616539]
[1750456306785,1.7758495,103590.0,103580.0,0.00136539]
[1750456309076,1.68718891,103590.0,103580.0,0.00136539]
[1750456309283,1.71898891,103590.0,103580.0,0.00136539]
[1750456310181,0.1930694,103580.0,103570.0,0.0639]
[1750456310388,1.61092433,103580.0,103570.0,0.0639]
[1750456310588,1.31545725,103580.0,103570.0,0.0639]
[1750456310884,1.74488476,103580.0,103570.0,0.0631]
[1750456311084,1.71905734,103580.0,103570.0,0.0635]
[1750456311280,1.71905734,103580.0,103570.0,0.0631]
[1750456311490,1.71905734,103580.0,103570.0,0.0635]
[1750456311883,0.1930881,103570.0,103560.0,0.0008]
[1750456312086,1.43931213,103570.0,103560.0,0.032]
[1750456312274,0.1931067,103560.0,103550.0,0.06306567]
[1750456312481,1.95096172,103560.0,103550.0,0.09506567]
[1750456313591,1.95096172,103560.0,103550.0,0.09706567]
[1750456313792,1.95096172,103560.0,103550.0,0.09906567]
[1750456315896,1.95096172,103560.0,103550.0,0.09826567]
[1750456316386,2.00863073,103560.0,103550.0,0.09866567]
[1750456316984,2.08700321,103560.0,103550.0,0.09866567]
[1750456319586,2.08700321,103560.0,103550.0,0.11619211]
[1750456320685,2.08700321,103560.0,103550.0,0.11419211]
[1750456324491,2.08700321,103560.0,103550.0,0.30731751]
[1750456324686,1.0875757,103560.0,103550.0,0.30731751]
[1750456324886,1.6894957,103560.0,103550.0,0.30731751]
[1750456325191,0.07837248,103560.0,103550.0,0.86125351]
[1750456325388,0.12177918,103560.0,103550.0,0.86125351]
[1750456325592,0.27151113,103560.0,103550.0,1.00608821]
[1750456325804,0.1931067,103560.0,103550.0,1.00608821]
[1750456326898,0.1931067,103560.0,103550.0,0.98856177]
[1750456328500,0.25077571,103560.0,103550.0,0.98856177]
[1750456329700,0.32657358,103560.0,103550.0,0.98856177]
[1750456330201,0.26890457,103560.0,103550.0,0.98856177]
[1750456330795,0.66653208,103560.0,103550.0,0.98856177]
[1750456332501,0.47342538,103560.0,103550.0,0.98856177]
[1750456332701,0.07579787,103560.0,103550.0,0.98856177]
[1750456333005,0.79322482,103570.0,103560.0,0.1931067]
[1750456333196,0.79322482,103570.0,103560.0,0.6156067]
[1750456334104,0.74494872,103570.0,103560.0,0.6156067]
[1750456334403,0.82121138,103570.0,103560.0,0.6156067]
[1750456335506,0.82221138,103570.0,103560.0,0.6156067]
[1750456335805,0.76654237,103570.0,103560.0,0.6156067]
[1750456336198,0.36891486,103570.0,103560.0,0.6156067]
[1750456336502,0.76654237,103570.0,103560.0,0.6156067]
[1750456337305,0.82439072,103570.0,103560.0,0.6156067]
[1750456339904,0.42676321,103570.0,103560.0,0.6156067]
[1750456340104,0.82439072,103570.0,103560.0,0.6156067]
[1750456340702,0.85479072,103570.0,103560.0,0.6156067]
[1750456342206,0.85479072,103570.0,103560.0,0.2548067]
[1750456342408,0.85479072,103570.0,103560.0,0.6156067]
[1750456344108,0.80651542,103570.0,103560.0,0.6156067]
[1750456344313,0.56513852,103570.0,103560.0,0.6156067]
[1750456344608,0.75822662,103570.0,103560.0,0.6156067]
[1750456346212,0.75822662,103570.0,103560.0,0.5856067]
[1750456347802,0.63200509,103570.0,103560.0,0.5856067]
[1750456348003,0.70738273,103570.0,103560.0,0.5856067]
[1750456348609,0.72729325,103570.0,103560.0,0.5856067]
[1750456348812,0.7273474,103570.0,103560.0,0.5856067]
[1750456354911,0.7273474,103570.0,103560.0,0.1931067]
[1750456355117,0.7273474,103570.0,103560.0,0.5539067]
[1750456359924,0.7273474,103570.0,103560.0,0.1931067]
[1750456360524,0.7273474,103570.0,103560.0,0.5543067]
[1750456361024,1.12502906,103570.0,103560.0,0.1935067]
[1750456361229,1.48582906,103570.0,103560.0,0.1931067]
[1750456361423,1.48582906,103570.0,103560.0,0.1935067]
[1750456361623,1.56291842,103570.0,103560.0,0.1935067]
[1750456365225,1.48582906,103570.0,103560.0,0.1935067]
[1750456367540,0.69046574,103570.0,103560.0,0.1935067]
[1750456367836,1.48582906,103570.0,103560.0,0.1935067]
[1750456373336,1.56298949,103570.0,103560.0,0.1935067]
[1750456379445,1.48582906,103570.0,103560.0,0.1935067]
[1750456380345,1.56293416,103570.0,103560.0,0.1935067]
[1750456380549,0.76757084,103570.0,103560.0,0.1935067]
[1750456380751,1.56293416,103570.0,103560.0,0.1935067]
[1750456385854,0.76757084,103570.0,103560.0,0.1935067]
[1750456386057,0.8044525,103570.0,103560.0,0.1935067]
[1750456386643,0.7273474,103570.0,103560.0,0.1935067]
[1750456386847,1.12502906,103570.0,103560.0,0.1935067]
[1750456388243,1.20213416,103570.0,103560.0,0.1935067]
[1750456391161,0.8044525,103570.0,103560.0,0.1935067]
[1750456391757,0.7273474,103570.0,103560.0,0.5869067]
[1750456392861,0.5038593,103570.0,103560.0,0.5869067]
[1750456393158,0.6969474,103570.0,103560.0,0.5869067]
[1750456393358,0.7740525,103570.0,103560.0,0.5869067]
[1750456393862,0.7740525,103570.0,103560.0,0.60449676]
[1750456394162,0.34557084,103570.0,103560.0,0.60449676]
[1750456394460,0.7432525,103570.0,103560.0,0.63539676]
[1750456395860,0.6661474,103570.0,103560.0,0.63539676]
[1750456396753,0.6978474,103570.0,103560.0,0.63539676]
[1750456396960,0.6978474,103570.0,103560.0,0.63522783]
[1750456398761,0.7749525,103570.0,103560.0,0.63522783]
[1750456400658,0.7749525,103570.0,103560.0,0.63499709]
[1750456401260,0.6978474,103570.0,103560.0,0.63499709]
[1750456401961,0.7279474,103570.0,103560.0,0.63499709]
[1750456402165,0.7279474,103570.0,103560.0,0.27419709]
[1750456402360,0.7279474,103570.0,103560.0,0.63499709]
[1750456403566,0.6661474,103570.0,103560.0,0.63499709]
[1750456403865,0.59076976,103570.0,103560.0,0.63499709]
[1750456414372,0.66787486,103570.0,103560.0,0.63499709]
[1750456419176,0.66787486,103570.0,103560.0,0.60409709]
[1750456419377,0.69967486,103570.0,103560.0,0.57149709]
[1750456419586,0.73197486,103570.0,103560.0,0.57149709]
[1750456419778,0.73197486,103570.0,103560.0,0.57109709]
[1750456419969,0.73197486,103570.0,103560.0,0.57149709]
[1750456420773,0.73197486,103570.0,103560.0,0.5543067]
[1750456424578,0.76227486,103570.0,103560.0,0.5543067]
[1750456424881,0.76227486,103570.0,103560.0,0.57174536]
[1750456425666,0.76227486,103570.0,103560.0,0.21094536]
[1750456426176,0.76227486,103570.0,103560.0,0.21054536]
[1750456426581,0.76227486,103570.0,103560.0,0.21094536]
[1750456428681,0.76227486,103570.0,103560.0,0.21054536]
[1750456428883,1.15995652,103570.0,103560.0,0.21054536]
[1750456429183,0.76227486,103570.0,103560.0,0.21054536]
[1750456429876,0.76227486,103570.0,103560.0,0.21094536]
[1750456430182,0.76227486,103570.0,103560.0,0.21054536]
[1750456430381,0.76227486,103570.0,103560.0,0.21094536]
[1750456431574,0.3645932,103570.0,103560.0,0.21094536]
[1750456431774,0.76227486,103570.0,103560.0,0.21094536]
[1750456434479,0.76227486,103570.0,103560.0,0.1935067]
[1750456435370,1.12307486,103570.0,103560.0,0.1935067]
[1750456435575,0.76227486,103570.0,103560.0,0.1935067]
[1750456437476,0.68516976,103570.0,103560.0,0.1935067]
[1750456438083,1.08285142,103570.0,103560.0,0.1935067]
[1750456440488,0.68516976,103570.0,103560.0,0.1935067]
[1750456443687,0.76227486,103570.0,103560.0,0.1935067]
[1750456445291,1.76039652,103570.0,103560.0,0.0004]
[1750456445490,2.23285107,103570.0,103560.0,0.0004]
[1750456445890,2.23285107,103570.0,103560.0,0.1935066]
[1750456449195,1.87205107,103570.0,103560.0,0.1935066]
[1750456449398,2.23285107,103570.0,103560.0,0.1935066]
[1750456449702,1.87205107,103570.0,103560.0,0.1935066]
[1750456450093,2.23285107,103570.0,103560.0,0.1935066]
[1750456450298,1.63241107,103570.0,103560.0,0.1935066]
[1750456450497,2.23273107,103570.0,103560.0,0.1935066]
[1750456451098,1.83504941,103570.0,103560.0,0.1935066]
[1750456451405,0.59076976,103570.0,103560.0,0.95198826]
[1750456451606,0.39768166,103570.0,103560.0,1.04508826]
[1750456452000,0.18110746,103570.0,103560.0,1.04508826]
[1750456452200,0.9171686,103580.0,103570.0,0.193088]
[1750456452407,0.87397936,103580.0,103570.0,0.62216966]
[1750456452602,0.90467936,103580.0,103570.0,0.224488]
[1750456453007,0.90467936,103580.0,103570.0,0.257288]
[1750456453309,0.82571016,103580.0,103570.0,0.257288]
[1750456453606,0.82571016,103580.0,103570.0,0.27510707]
[1750456454408,0.74860506,103580.0,103570.0,0.24230707]
[1750456454608,0.74860506,103580.0,103570.0,0.27510707]
[1750456455111,0.75060506,103580.0,103570.0,0.27510707]
[1750456455502,0.75060506,103580.0,103570.0,0.30780707]
[1750456459406,0.75060506,103580.0,103570.0,0.70548873]
[1750456460410,0.75060506,103580.0,103570.0,1.06628873]
[1750456460810,0.75060506,103580.0,103570.0,1.03358873]
[1750456461013,0.78330506,103580.0,103570.0,1.03358873]
[1750456463197,0.78330506,103580.0,103570.0,0.63590707]
[1750456466510,0.67023656,103580.0,103570.0,1.03358873]
[1750456466714,0.33034299,103580.0,103570.0,1.06548873]
[1750456466907,0.72802465,103580.0,103570.0,1.06548873]
[1750456467402,0.72802465,103580.0,103570.0,0.66780707]
[1750456467602,0.72802465,103580.0,103570.0,1.06548873]
[1750456470806,0.67023656,103580.0,103570.0,1.06548873]
[1750456478221,0.47715076,103580.0,103570.0,1.06548873]
[1750456478423,0.53493885,103580.0,103570.0,1.06548873]
[1750456480223,0.53493885,103580.0,103570.0,1.0696628]
[1750456483317,0.13725719,103580.0,103570.0,0.66780707]
[1750456483523,0.13725719,103580.0,103570.0,1.06548873]
[1750456483724,0.16725719,103580.0,103570.0,1.06548873]
[1750456484128,0.16725719,103580.0,103570.0,1.03358873]
[1750456484327,0.16725719,103580.0,103570.0,1.0377628]
[1750456485217,0.16725719,103580.0,103570.0,1.0680628]
[1750456485719,0.16625719,103580.0,103570.0,1.0700628]
[1750456486119,0.16525719,103580.0,103570.0,1.0710628]
[1750456486427,0.13525719,103580.0,103570.0,1.0710628]
[1750456489826,0.05778809,103580.0,103570.0,1.0710628]
[1750456490731,0.05778809,103580.0,103570.0,1.07074736]
[1750456490932,0.51756483,103590.0,103580.0,0.1930694]
[1750456491128,0.51756483,103590.0,103580.0,1.75679106]
[1750456491434,0.11988317,103590.0,103580.0,1.75679106]
[1750456491631,0.19594274,103590.0,103580.0,1.75679106]
[1750456492121,0.19694274,103590.0,103580.0,1.75679106]
[1750456492726,0.19794274,103590.0,103580.0,1.75679106]
[1750456494234,0.19794274,103590.0,103580.0,1.3591094]
[1750456494437,0.14015465,103590.0,103580.0,1.75679106]
[1750456495037,0.14015465,103590.0,103580.0,1.3591094]
[1750456495235,0.14015465,103590.0,103580.0,1.75679106]
[1750456495437,0.17095465,103590.0,103580.0,1.75679106]
[1750456496837,0.20415465,103590.0,103580.0,1.75679106]
[1750456498136,0.10705465,103590.0,103580.0,2.15447272]
[1750456498341,0.05989438,103590.0,103580.0,2.18487272]
[1750456500232,0.09069438,103590.0,103580.0,2.18487272]
[1750456500630,0.08969438,103590.0,103580.0,2.18587272]
[1750456501237,0.08869438,103590.0,103580.0,2.18587272]
[1750456501438,0.08869438,103590.0,103580.0,2.18787272]
[1750456501640,0.0308,103590.0,103580.0,2.18787272]
[1750456502040,0.85408142,103600.0,103590.0,0.1930507]
[1750456502240,0.88488142,103600.0,103590.0,0.95153236]
[1750456502444,0.88488142,103600.0,103590.0,0.5538507]
[1750456502637,0.88488142,103600.0,103590.0,0.95153236]
[1750456504139,0.69184242,103600.0,103590.0,0.95153236]
[1750456504439,0.88587892,103600.0,103590.0,0.95153236]
[1750456504946,0.88687892,103600.0,103590.0,0.95153236]
[1750456506451,0.83862092,103600.0,103590.0,0.95153236]
[1750456506650,0.83862092,103600.0,103590.0,0.5538507]
[1750456507052,0.83862092,103600.0,103590.0,0.95153236]
[1750456508450,0.83662092,103600.0,103590.0,0.95153236]
[1750456508660,0.83662092,103600.0,103590.0,0.95453236]
[1750456508951,1.23430258,103600.0,103590.0,0.5568507]
[1750456509451,0.83662092,103600.0,103590.0,0.5568507]
[1750456510049,1.23430258,103600.0,103590.0,0.5568507]
[1750456511350,0.83662092,103600.0,103590.0,0.5568507]
[1750456514353,0.83662092,103600.0,103590.0,0.95453236]
[1750456514644,0.77872654,103600.0,103590.0,0.59373236]
[1750456514953,0.83656497,103600.0,103590.0,0.95453236]
[1750456515655,0.77872654,103600.0,103590.0,0.95453236]
[1750456517554,0.83658641,103600.0,103590.0,0.95453236]
[1750456518250,0.83658641,103600.0,103590.0,0.59373236]
[1750456518449,0.83658641,103600.0,103590.0,0.95453236]
[1750456519349,0.83658641,103600.0,103590.0,0.59373236]
[1750456519555,0.83658641,103600.0,103590.0,0.95453236]
[1750456520947,1.23426807,103600.0,103590.0,0.1960507]
[1750456521151,1.33890539,103600.0,103590.0,0.7945707]
[1750456521354,1.33890539,103600.0,103590.0,0.1960507]
[1750456521554,1.28104552,103600.0,103590.0,0.1960507]
[1750456523657,1.64184552,103600.0,103590.0,0.1960507]
[1750456523961,1.28104552,103600.0,103590.0,0.1960507]
[1750456524162,0.4856822,103600.0,103590.0,0.1960507]
[1750456524358,1.28104552,103600.0,103590.0,0.1960507]
[1750456524660,0.41869279,103610.0,103590.0,1.15916332]
[1750456524858,0.05789279,103610.0,103600.0,1.72301376]
[1750456525063,0.05789279,103610.0,103600.0,2.15159542]
[1750456525757,0.84137625,103620.0,103610.0,0.1930135]
[1750456525957,0.84137625,103620.0,103610.0,0.59069516]
[1750456526360,0.78348346,103620.0,103610.0,0.59069516]
[1750456526661,0.85926794,103620.0,103610.0,0.59069516]
[1750456527764,0.85926794,103620.0,103610.0,0.1930135]
[1750456527964,0.85926794,103620.0,103610.0,0.59069516]
[1750456528567,0.86026794,103620.0,103610.0,0.59069516]
[1750456529169,0.93938007,103620.0,103610.0,0.59069516]
[1750456529565,0.94038007,103620.0,103610.0,0.59069516]
[1750456532358,0.94038007,103620.0,103610.0,0.62369516]
[1750456533167,0.15689661,103620.0,103610.0,0.62369516]
[1750456533367,0.55457827,103620.0,103610.0,1.01689516]
[1750456533562,0.55457827,103620.0,103610.0,1.04849516]
[1750456533757,0.15689661,103620.0,103610.0,1.04849516]
[1750456533963,0.09904843,103620.0,103610.0,1.04849516]
[1750456534160,0.29204323,103620.0,103610.0,1.04849516]
[1750456534962,0.27410693,103620.0,103610.0,1.04849516]
[1750456535163,0.08111213,103620.0,103610.0,1.04849516]
[1750456537366,0.27410703,103620.0,103610.0,1.04849516]
[1750456538969,0.002,103620.0,103610.0,1.04849516]
[1750456540863,0.002,103620.0,103610.0,1.44617682]
[1750456541465,0.002,103620.0,103610.0,1.04849516]
[1750456544672,0.002,103620.0,103610.0,1.44617682]
[1750456552192,0.11086669,103640.0,103630.0,0.1929762]
[1750456552388,0.14316669,103640.0,103630.0,1.90989786]
[1750456552589,0.17416669,103640.0,103630.0,1.94109786]
[1750456552790,0.17416669,103640.0,103630.0,1.97259786]
[1750456552985,0.17456669,103640.0,103630.0,1.97259786]
[1750456554500,0.17456669,103640.0,103630.0,1.97359786]
[1750456556801,0.0014,103640.0,103630.0,2.37127952]
[1750456557002,0.0014,103640.0,103630.0,1.94209786]
[1750456557197,0.0014,103640.0,103630.0,1.34445786]
[1750456557406,0.73179239,103640.0,103630.0,1.31325786]
[1750456557699,0.65523926,103640.0,103630.0,2.05245786]
[1750456557995,0.65483926,103640.0,103630.0,2.05245786]
[1750456558205,0.65523926,103640.0,103630.0,2.05245786]
[1750456558699,0.65523926,103640.0,103630.0,2.05205786]
[1750456558892,0.65523926,103640.0,103630.0,2.05245786]
[1750456559906,0.65523926,103640.0,103630.0,1.6547362]
[1750456560101,0.2575576,103640.0,103630.0,2.05241786]
[1750456560302,0.65523926,103640.0,103630.0,2.05241786]
[1750456561004,0.65523926,103640.0,103630.0,2.05237786]
[1750456561607,0.65523926,103640.0,103630.0,1.31865786]
[1750456561804,0.73434247,103640.0,103630.0,2.05733786]
[1750456564109,0.73434247,103640.0,103630.0,2.05729786]
[1750456564305,0.73434247,103640.0,103630.0,2.05689786]
[1750456564499,0.73434247,103640.0,103630.0,2.05729786]
[1750456564695,0.82360274,103640.0,103630.0,2.05729786]
[1750456565199,0.82360274,103640.0,103630.0,2.05329786]
[1750456566801,0.82360274,103640.0,103630.0,2.05321786]
[1750456568106,0.76584247,103640.0,103630.0,2.05321786]
[1750456568408,0.36816081,103640.0,103630.0,2.05735193]
[1750456570009,0.36816081,103640.0,103630.0,1.65967027]
[1750456570209,0.36816081,103640.0,103630.0,2.05735193]
[1750456570901,0.42592108,103640.0,103630.0,2.05735193]
[1750456572805,0.23296348,103640.0,103630.0,2.05735193]
[1750456573407,0.05916027,103640.0,103630.0,2.05735193]
[1750456573600,0.05916027,103640.0,103630.0,2.12065193]
[1750456573908,0.001,103640.0,103630.0,2.12065193]
[1750456574499,0.0014,103640.0,103630.0,2.12065193]
[1750456574914,0.0014,103640.0,103630.0,2.15115193]
[1750456575808,0.05916027,103640.0,103630.0,2.15115193]
[1750456578217,0.76134384,103650.0,103640.0,0.1929576]
[1750456578511,0.71310864,103650.0,103640.0,1.01373926]